fUSD/lending_fUSD_20240527
["ID","MTS","AMOUNT","RATE_DAILY","PERIOD"]
[328030996,1716784248180,-540.72,0.00035499,7]
[328030997,1716784248189,-289.11,0.00035499,7]
[328030998,1716784248198,-540.72,0.00035499,7]
[328030999,1716784248208,-540.72,0.00035499,7]
[328031000,1716784248217,-540.72,0.00035499,7]
[328031001,1716784248226,-540.72,0.00035499,7]
[328031002,1716784248235,-540.72,0.00035499,7]
[328031003,1716784248244,-540.72,0.00035499,7]
[328031004,1716784248253,-540.72,0.00035499,7]
[328031005,1716784248262,-540.72,0.00035499,7]
[328031006,1716784248271,-540.72,0.00035499,7]
[328031007,1716784248281,-540.72,0.00035499,7]
[328031008,1716784248290,-540.72,0.00035499,7]
[328031009,1716784248299,-540.72,0.00035499,7]
[328031010,1716784248309,-540.72,0.00035499,7]
[328031011,1716784248318,-540.72,0.00035499,7]
[328031012,1716784248328,-500.0,0.00035499,7]
[328031013,1716784248337,-540.72,0.00035499,7]
[328031014,1716784248347,-540.72,0.00035499,7]
[328031015,1716784248357,-382.89,0.00035499,7]
[328031016,1716784248366,-540.8,0.00035499,7]
[328031017,1716784248375,-346.23,0.00035499,7]
[328031018,1716784248384,-565.6,0.00035499,7]
[328031019,1716784248393,-500.0,0.00035499,7]
[328031020,1716784248402,-500.0,0.00035499,7]
[328031021,1716784248411,-500.0,0.00035499,7]
[328031022,1716784248420,-500.0,0.00035499,7]
[328031023,1716784248429,-500.0,0.00035499,7]
[328031024,1716784248439,-500.0,0.00035499,7]
[328031025,1716784248448,-500.0,0.00035499,7]
[328031026,1716784248457,-500.0,0.00035499,7]
[328031027,1716784248467,-500.0,0.00035499,7]
[328031028,1716784248476,-500.0,0.00035499,7]
[328031029,1716784248485,-500.0,0.00035499,7]
[328031030,1716784248494,-500.0,0.00035499,7]
[328031031,1716784248503,-500.0,0.00035499,7]
[328031032,1716784248512,-500.0,0.00035499,7]
[328031033,1716784248521,-500.0,0.00035499,7]
[328031034,1716784248530,-447.55262692,0.00035499,7]
[328031035,1716784248539,-500.0,0.00035499,7]
[328031036,1716784248549,-596.8,0.00035499,7]
[328031037,1716784248558,-500.0,0.00035499,7]
[328031038,1716784248567,-270.29,0.00035499,7]
[328031039,1716784248576,-500.0,0.00035499,7]
[328031040,1716784248585,-174.66,0.00035499,7]
[328031041,1716784248595,-161.76,0.00035499,7]
[328031042,1716784248605,-500.0,0.00035499,7]
[328031043,1716784248614,-500.0,0.00035499,7]
[328031044,1716784248623,-315.6,0.00035499,7]
[328031045,1716784248632,-601.27817518,0.00035499,7]
[328031046,1716784248642,-500.0,0.00035499,7]
[328031047,1716784248651,-605.27,0.00035499,7]
[328031048,1716784248660,-500.0,0.00035499,7]
[328031049,1716784248670,-563.28,0.00035499,7]
[328031050,1716784248679,-473.53,0.00035499,7]
[328031051,1716784248689,-630.12,0.00035499,7]
[328031052,1716784248698,-630.12,0.00035499,7]
[328031053,1716784248707,-630.12,0.00035499,7]
[328031054,1716784248716,-413.13,0.00035499,7]
[328031055,1716784248725,-630.12,0.00035499,7]
[328031056,1716784248734,-630.12,0.00035499,7]
[328031057,1716784248744,-500.0,0.00035499,7]
[328031058,1716784248753,-630.12,0.00035499,7]
[328031059,1716784248762,-500.0,0.00035499,7]
[328031060,1716784248772,-630.12,0.00035499,7]
[328031061,1716784248782,-188.98,0.00035499,7]
[328031062,1716784248791,-630.12,0.00035499,7]
[328031063,1716784248801,-603.76,0.00035499,7]
[328031064,1716784248810,-500.0,0.00035499,7]
[328031065,1716784248819,-630.12,0.00035499,7]
[328031066,1716784248832,-500.0,0.00035499,7]
[328031067,1716784248841,-630.12,0.00035499,7]
[328031068,1716784248851,-500.0,0.00035499,7]
[328031069,1716784248860,-630.12,0.00035499,7]
[328031070,1716784248869,-500.0,0.00035499,7]
[328031071,1716784248881,-630.12,0.00035499,7]
[328031072,1716784248890,-500.0,0.00035499,7]
[328031073,1716784248900,-630.12,0.00035499,7]
[328031074,1716784248910,-500.0,0.00035499,7]
[328031075,1716784248920,-630.12,0.00035499,7]
[328031076,1716784248930,-630.12,0.00035499,7]
[328031077,1716784248939,-324.05,0.00035499,7]
[328031078,1716784248948,-630.12,0.00035499,7]
[328031079,1716784248958,-411.26,0.00035499,7]
[328031080,1716784248967,-630.12,0.00035499,7]
[328031081,1716784248976,-630.12,0.00035499,7]
[328031082,1716784248986,-630.12,0.00035499,7]
[328031083,1716784248996,-630.12,0.00035499,7]
[328031084,1716784249005,-630.12,0.00035499,7]
[328031085,1716784249015,-630.26,0.00035499,7]
[328031086,1716784249025,-500.0,0.00035499,7]
[328031087,1716784249035,-430.12,0.00035499,7]
[328031088,1716784249044,-542.26,0.00035499,7]
[328031089,1716784249054,-500.0,0.00035499,7]
[328031090,1716784249064,-208.75,0.00035499,7]
[328031091,1716784249073,-554.05,0.00035499,7]
[328031092,1716784249082,-500.0,0.00035499,7]
[328031093,1716784249092,-391.2,0.00035499,7]
[328031094,1716784249101,-500.0,0.00035499,7]
[328031095,1716784249111,-500.0,0.00035499,7]
[328031096,1716784249120,-500.0,0.00035499,7]
[328031097,1716784249129,-500.0,0.00035499,7]
[328031098,1716784249139,-500.0,0.00035499,7]
[328031099,1716784249148,-500.0,0.00035499,7]
[328031100,1716784249158,-500.0,0.00035499,7]
[328031101,1716784249167,-449.18,0.00035499,7]
[328031102,1716784249176,-500.0,0.00035499,7]
[328031103,1716784249186,-500.0,0.00035499,7]
[328031104,1716784249195,-500.0,0.00035499,7]
[328031105,1716784249204,-500.0,0.00035499,7]
[328031106,1716784249214,-272.31,0.00035499,7]
[328031107,1716784249223,-500.0,0.00035499,7]
[328031108,1716784249233,-274.59,0.00035499,7]
[328031109,1716784249243,-517.34,0.00035499,7]
[328031110,1716784249253,-500.0,0.00035499,7]
[328031111,1716784249262,-387.03,0.00035499,7]
[328031112,1716784249272,-327.51,0.00035499,7]
[328031113,1716784249282,-500.0,0.00035499,7]
[328031114,1716784249291,-598.27,0.00035499,7]
[328031115,1716784249300,-417.42,0.00035499,7]
[328031116,1716784249310,-500.0,0.00035499,7]
[328031117,1716784249319,-645.8,0.00035499,7]
[328031118,1716784249328,-500.0,0.00035499,7]
[328031119,1716784249337,-188.66669004,0.00035499,7]
[328031120,1716784249347,-509.64,0.00035499,7]
[328031121,1716784249356,-288.6,0.00035499,7]
[328031122,1716784249366,-568.22,0.00035499,7]
[328031123,1716784249376,-341.54,0.00035499,7]
[328031124,1716784249385,-275.64,0.00035499,7]
[328031125,1716784249395,-500.0,0.00035499,7]
[328031126,1716784249404,-429.67001849,0.00035499,7]
[328031127,1716784249414,-500.0,0.00035499,7]
[328031128,1716784249423,-606.74,0.00035499,7]
[328031129,1716784249432,-566.21,0.00035499,7]
[328031130,1716784249442,-620.47,0.00035499,7]
[328031131,1716784249452,-500.0,0.00035499,7]
[328031132,1716784249461,-164.18,0.00035499,7]
[328031133,1716784249471,-173.83,0.00035499,7]
[328031134,1716784249480,-500.0,0.00035499,7]
[328031135,1716784249490,-500.0,0.00035499,7]
[328031136,1716784249499,-500.0,0.00035499,7]
[328031137,1716784249508,-620.36,0.00035499,7]
[328031138,1716784249517,-253.51,0.00035499,7]
[328031139,1716784249528,-1034.51,0.00035499,7]
[328031140,1716784249537,-1034.51,0.00035499,7]
[328031141,1716784249547,-1034.51,0.00035499,7]
[328031142,1716784249556,-1034.51,0.00035499,7]
[328031143,1716784249565,-1034.51,0.00035499,7]
[328031144,1716784249575,-1034.51,0.00035499,7]
[328031145,1716784249585,-1034.51,0.00035499,7]
[328031146,1716784249594,-1034.51,0.00035499,7]
[328031147,1716784249604,-1034.51,0.00035499,7]
[328031148,1716784249613,-1034.51,0.00035499,7]
[328031149,1716784249623,-1034.51,0.00035499,7]
[328031150,1716784249632,-1034.51,0.00035499,7]
[328031151,1716784249642,-500.0,0.00035499,7]
[328031152,1716784249651,-1034.51,0.00035499,7]
[328031153,1716784249661,-388.43,0.00035499,7]
[328031154,1716784249670,-1034.51,0.00035499,7]
[328031155,1716784249680,-1034.51,0.00035499,7]
[328031156,1716784249689,-1034.51,0.00035499,7]
[328031157,1716784249698,-1034.51,0.00035499,7]
[328031158,1716784249708,-1034.51,0.00035499,7]
[328031159,1716784249717,-1034.51,0.00035499,7]
[328031160,1716784249726,-1034.51,0.00035499,7]
[328031161,1716784249736,-1034.51,0.00035499,7]
[328031162,1716784249746,-1034.66,0.00035499,7]
[328031163,1716784249756,-500.0,0.00035499,7]
[328031164,1716784249765,-500.0,0.00035499,7]
[328031165,1716784249775,-343.39,0.00035499,7]
[328031166,1716784249785,-500.0,0.00035499,7]
[328031167,1716784249795,-500.0,0.00035499,7]
[328031168,1716784249804,-500.0,0.00035499,7]
[328031169,1716784249813,-417.61,0.00035499,7]
[328031170,1716784249823,-500.0,0.00035499,7]
[328031171,1716784249837,-418.49,0.00035499,7]
[328031172,1716784249846,-500.0,0.00035499,7]
[328031173,1716784249856,-182.39,0.00035499,7]
[328031174,1716784249867,-500.0,0.00035499,7]
[328031175,1716784249876,-649.43,0.00035499,7]
[328031176,1716784249886,-500.0,0.00035499,7]
[328031177,1716784249896,-500.0,0.00035499,7]
[328031178,1716784249908,-521.95,0.00035499,7]
[328031179,1716784249917,-500.0,0.00035499,7]
[328031180,1716784249926,-550.9194515,0.00035499,7]
[328031181,1716784249936,-500.0,0.00035499,7]
[328031182,1716784249945,-500.0,0.00035499,7]
[328031183,1716784249955,-518.09,0.00035499,7]
[328031184,1716784249964,-500.0,0.00035499,7]
[328031185,1716784249974,-196.13,0.00035499,7]
[328031186,1716784249984,-213.68,0.00035499,7]
[328031187,1716784249994,-500.0,0.00035499,7]
[328031188,1716784250003,-500.0,0.00035499,7]
[328031189,1716784250012,-500.0,0.00035499,7]
[328031190,1716784250022,-500.0,0.00035499,7]
[328031191,1716784250034,-500.0,0.00035499,7]
[328031192,1716784250044,-226.6,0.00035499,7]
[328031193,1716784250054,-500.0,0.00035499,7]
[328031194,1716784250063,-500.0,0.00035499,7]
[328031195,1716784250073,-500.0,0.00035499,7]
[328031196,1716784250083,-612.45,0.00035499,7]
[328031197,1716784250092,-500.0,0.00035499,7]
[328031198,1716784250102,-271.91,0.00035499,7]
[328031199,1716784250112,-531.55,0.00035499,7]
[328031200,1716784250122,-500.0,0.00035499,7]
[328031201,1716784250131,-250.17,0.00035499,7]
[328031202,1716784250141,-500.0,0.00035499,7]
[328031203,1716784250150,-500.0,0.00035499,7]
[328031204,1716784250161,-642.06,0.00035499,7]
[328031205,1716784250170,-500.0,0.00035499,7]
[328031206,1716784250180,-549.74,0.00035499,7]
[328031207,1716784250189,-631.27,0.00035499,7]
[328031208,1716784250199,-500.0,0.00035499,7]
[328031209,1716784250208,-500.0,0.00035499,7]
[328031210,1716784250218,-237.4042,0.00035499,7]
[328031211,1716784250228,-500.0,0.00035499,7]
[328031212,1716784250237,-641.22,0.00035499,7]
[328031213,1716784250248,-463.31,0.00035499,7]
[328031214,1716784250258,-500.0,0.00035499,7]
[328031215,1716784250268,-278.14093484,0.00035499,7]
[328031216,1716784250280,-500.0,0.00035499,7]
[328031217,1716784250290,-500.0,0.00035499,7]
[328031218,1716784250299,-500.0,0.00035499,7]
[328031219,1716784250309,-415.0,0.00035499,7]
[328031220,1716784250319,-500.0,0.00035499,7]
[328031221,1716784250329,-522.85292615,0.00035499,7]
[328031222,1716784250339,-500.0,0.00035499,7]
[328031223,1716784250349,-500.0,0.00035499,7]
[328031224,1716784250359,-500.0,0.00035499,7]
[328031225,1716784250368,-500.0,0.00035499,7]
[328031226,1716784250378,-500.0,0.00035499,7]
[328031227,1716784250388,-389.74,0.00035499,7]
[328031228,1716784250398,-500.0,0.00035499,7]
[328031229,1716784250407,-498.23,0.00035499,7]
[328031230,1716784250417,-153.0,0.000355,5]
[328031231,1716784250427,-9598.64982366,0.000355,9]
[328031232,1716784250437,-48379.8066562,0.000355,5]
[328031233,1716784250520,-926.76481737,0.000355,5]
[328031245,1716784450677,846.0957006,0.00012808,2]
[328031316,1716784833533,155.0,0.00017807,2]
[328031317,1716784903148,428.74701672,0.00017259,2]
[328031318,1716784943120,161.96,0.00013973,2]
[328031319,1716785134228,-758.74565631,0.00024,3]
[328031320,1716785230144,-241.14354503,0.00024,3]
[328031346,1716785432019,-1271.63345581,0.00019625,2]
[328031347,1716785432029,-5.82654419,0.00019724,2]
[328031348,1716785432041,-422.92047253,0.00019724,2]
[328031349,1716785432050,-155.0,0.00019725,2]
[328031350,1716785432060,-425.45051364,0.00024,3]
[328031351,1716785432070,-1207.42321149,0.000262,3]
[328031352,1716785432082,-1138.57678851,0.000262,3]
[328031353,1716785432091,-162.97,0.00030233,2]
[328031354,1716785432101,-250.0,0.00031308,2]
[328031355,1716785432110,-163.93,0.00031385,3]
[328031356,1716785432120,-200.0,0.000319,11]
[328031357,1716785432129,-500.0,0.00032,11]
[328031358,1716785432138,-700.0,0.000321,11]
[328031359,1716785432147,-1000.0,0.000322,11]
[328031360,1716785432156,-654.54400321,0.000323,11]
[328031361,1716785432167,-645.45599679,0.000323,11]
[328031362,1716785432176,-200.0,0.000324,11]
[328031363,1716785432185,-200.0,0.000325,11]
[328031364,1716785432194,-200.0,0.000326,11]
[328031365,1716785432208,-1283.52,0.00032677,2]
[328031366,1716785432218,-200.0,0.000327,11]
[328031367,1716785432226,-496.28,0.00032776,6]
[328031368,1716785432235,-151.1,0.00032776,6]
[328031369,1716785432246,-785.0,0.000328,11]
[328031370,1716785432256,-250.0,0.00033077,2]
[328031371,1716785432264,-23880.0,0.00033104,2]
[328031372,1716785432274,-706.33300509,0.00033136,2]
[328031373,1716785432283,-160.0,0.00033168,2]
[328031374,1716785432295,-204986.09724236,0.00033231,60]
[328031375,1716785432723,-22422.3742491,0.00033231,60]
[328031376,1716785432848,-401.07558595,0.00033231,60]
[328031485,1716785438259,-712.08271485,0.00033231,9]
[328031486,1716785438297,-1626.7089354,0.00033231,9]
[328031487,1716785438371,-944.84036652,0.00033231,9]
[328031488,1716785438383,-1515.69289506,0.00033231,9]
[328031489,1716785438392,-457.33853187,0.00033231,60]
[328031490,1716785438584,-27565.3489274,0.00033231,60]
[328031491,1716785438595,-2932.46201043,0.00033231,60]
[328031492,1716785438607,-11477.69591796,0.00033231,60]
[328031493,1716785438627,-1692.46767706,0.00033231,60]
[328031505,1716785440632,-354.16960267,0.00033231,60]
[328031507,1716785440644,-250.13277065,0.00033231,60]
[328031513,1716785440698,-866.10066322,0.00033231,60]
[328031516,1716785440710,-338.805,0.00033231,60]
[328031529,1716785441441,-7886.02522672,0.00033231,60]
[328031530,1716785441480,-4015.37603884,0.00033231,60]
[328031531,1716785441492,-18405.990843,0.00033231,60]
[328031532,1716785441504,-7480.8599,0.00033231,60]
[328031533,1716785441515,-8194.3,0.00033231,60]
[328031534,1716785442738,-7104.61058235,0.00033231,60]
[328031535,1716785443186,-2523.03622111,0.00033231,60]
[328031536,1716785443198,-2234.02887161,0.00033231,60]
[328031537,1716785443214,-46625.98656605,0.00033231,60]
[328031538,1716785443226,-942.66174752,0.00033231,60]
[328031539,1716785443237,-28477.76061634,0.00033231,60]
[328031547,1716785443348,-655.009987,0.00033231,60]
[328031565,1716785451454,155.68,0.00013973,2]
[328031570,1716785783861,1385.83218734,0.00017259,2]
[328031571,1716785810278,737.02896,0.00017259,2]
[328031572,1716786097739,137.26911862,0.00017259,2]
[328031573,1716786352206,-155.0,0.00017158,2]
[328031574,1716786352226,-153.86904226,0.00017159,2]
[328031575,1716786352246,-291.4778981,0.00017259,2]
[328031576,1716786352267,-715.81111427,0.00017259,2]
[328031577,1716786434107,-1003.9178,0.00017158,2]
[328031578,1716786434129,-4001.57753492,0.00017259,2]
[328031579,1716786448824,155.68,0.00013973,2]
[328031580,1716786529527,164.37,0.00030171,120]
[328031592,1716786632247,-8712.41661437,0.00017259,2]
[328031593,1716786632257,-737.02897,0.0001825,2]
[328031594,1716786632268,-737.02897,0.000195,2]
[328031595,1716786632277,-737.02897,0.0002075,2]
[328031596,1716786632287,-737.02897,0.00022,2]
[328031597,1716786632296,-737.02896,0.0002325,2]
[328031598,1716786632306,-155.68,0.00025156,2]
[328031599,1716786632315,-765.0,0.000262,3]
[328031600,1716786632324,-155.0,0.00027469,2]
[328031601,1716786632333,-428.74701672,0.0002747,2]
[328031602,1716786632342,-167.67160804,0.00027471,2]
[328031603,1716786632351,-163.4,0.00028852,2]
[328031604,1716786632360,-238.4,0.00029913,2]
[328031605,1716786632370,-1327.51,0.00029996,61]
[328031606,1716786632387,-762.31811258,0.0003,7]
[328031607,1716786632399,-150.0,0.00030894,2]
[328031608,1716786632408,-23890.0,0.00031098,2]
[328031609,1716786632418,-1003.84,0.0003116,2]
[328031610,1716786632428,-250.0,0.0003116,2]
[328031611,1716786632437,-250.0,0.00032085,2]
[328031612,1716786632446,-160.0,0.00032337,2]
[328031613,1716786632456,-177.052713,0.00032948,42]
[328031614,1716786632465,-173.052713,0.00033048,44]
[328031615,1716786632475,-411.86496791,0.00033106,2]
[328031616,1716786632484,-165.07299819,0.0003314,2]
[328031617,1716786632493,-3285.78599095,0.0003314,2]
[328031618,1716786632502,-1473.20066454,0.0003314,2]
[328031619,1716786632511,-15173.94166095,0.00033148,5]
[328031620,1716786632521,-173.052713,0.00033148,42]
[328031621,1716786632530,-2832.1694753,0.00033229,4]
[328031623,1716786632540,-3952.12611791,0.00033229,4]
[328031624,1716786632549,-155.29581922,0.00033229,4]
[328031625,1716786632558,-150.0,0.00033239,7]
[328031626,1716786632567,-150.0,0.00033239,7]
[328031627,1716786632577,-150.0,0.00033239,7]
[328031628,1716786632587,-184.0,0.0003324,5]
[328031629,1716786632598,-1141.0,0.0003324,30]
[328031630,1716786632608,-6446.24438432,0.0003324,60]
[328031631,1716786632621,-495.56999222,0.0003324,60]
[328031793,1716786638165,-2399.66245591,0.0003324,9]
[328031794,1716786638176,-169.0,0.0003324,5]
[328031795,1716786638186,-3379.50141643,0.0003324,60]
[328031796,1716786638325,-94178.37830526,0.0003324,60]
[328031797,1716786638338,-548.17981413,0.0003324,60]
[328031808,1716786640985,-4833.62288213,0.0003324,60]
[328031809,1716786641893,-851.76082465,0.0003324,60]
[328031829,1716786644154,-150.0,0.0003324,5]
[328031831,1716786644164,-20481.6,0.0003324,60]
[328031833,1716786644176,-987.90159,0.0003324,60]
[328031836,1716786644188,-375896.64794758,0.0003324,60]
[328031838,1716786644199,-108370.42834926,0.0003324,60]
[328031853,1716787026946,154.81,0.00013973,2]
[328031856,1716787627211,-333.55176383,0.00017245,2]
[328031857,1716787638103,-323.80788506,0.00017245,2]
[328031858,1716787638126,-155.0,0.00017256,2]
[328031859,1716787638146,-428.74701672,0.00017257,2]
[328031860,1716787638165,-1515.72229306,0.00017258,2]
[328031861,1716787638187,-39.39377289,0.00017259,2]
[328031862,1716787660786,161.96,0.00013973,2]
[328031883,1716787832604,-419.79190286,0.00017259,2]
[328031884,1716787832615,-34947.41896148,0.00017259,2]
[328031885,1716787832625,-150.99,0.00019726,2]
[328031886,1716787832634,-164.05937011,0.00027651,2]
[328031887,1716787832643,-163.4,0.00029679,2]
[328031888,1716787832653,-499.99,0.00029702,2]
[328031889,1716787832662,-334.0,0.00031484,2]
[328031890,1716787832671,-3048.45,0.00031484,2]
[328031891,1716787832680,-190.72,0.00031507,2]
[328031892,1716787832690,-782.61359779,0.00031576,4]
[328031893,1716787832699,-250.0,0.00031698,2]
[328031894,1716787832709,-1085.27,0.00031712,2]
[328031895,1716787832718,-164.37,0.00031736,120]
[328031896,1716787832727,-168.59,0.00031845,2]
[328031897,1716787832736,-611.60011104,0.0003199,2]
[328031898,1716787832746,-177.58,0.00031995,2]
[328031899,1716787832755,-35000.0,0.00032,3]
[328031900,1716787832765,-221.27,0.00032349,120]
[328031901,1716787832775,-168.59,0.00032674,2]
[328031902,1716787832786,-153.32077,0.0003281,2]
[328031903,1716787832795,-35000.0,0.00033,5]
[328031904,1716787832804,-411.86496791,0.00033113,2]
[328031905,1716787832812,-3421.2775,0.0003314,2]
[328031906,1716787832821,-281.8126,0.0003314,2]
[328031907,1716787832830,-167.93667039,0.0003314,2]
[328031908,1716787832839,-190.70991138,0.0003314,2]
[328031909,1716787832848,-190.70991138,0.00033144,2]
[328031910,1716787832858,-756.81148949,0.00033148,2]
[328031911,1716787832867,-190.70991138,0.00033148,2]
[328031912,1716787832877,-209.64787819,0.00033148,2]
[328031913,1716787832886,-329.94856387,0.00033148,2]
[328031914,1716787832896,-232.54626846,0.00033148,2]
[328031915,1716787832905,-190.89242599,0.00033148,2]
[328031917,1716787832914,-4601.56659857,0.00033208,4]
[328031919,1716787832924,-172.90576968,0.00033238,2]
[328031921,1716787832934,-151.79,0.00033238,2]
[328031923,1716787832943,-151.79,0.00033238,2]
[328031925,1716787832952,-151.79,0.00033238,2]
[328031927,1716787832962,-151.79,0.00033238,2]
[328031929,1716787832971,-50.40032649,0.00033238,2]
[328031931,1716787832985,-101.38967351,0.00033238,2]
[328031933,1716787832996,-151.79,0.00033238,2]
[328031935,1716787833009,-151.79,0.00033238,2]
[328031937,1716787833018,-151.79,0.00033238,2]
[328031939,1716787833029,-151.79,0.00033238,2]
[328031941,1716787833041,-151.79,0.00033238,2]
[328031943,1716787833050,-151.79,0.00033238,2]
[328031945,1716787833060,-151.79,0.00033238,2]
[328031947,1716787833070,-151.79,0.00033238,2]
[328031949,1716787833080,-151.79,0.00033238,2]
[328031950,1716787833090,-151.79,0.00033238,2]
[328031951,1716787833099,-151.79,0.00033238,2]
[328031952,1716787833109,-151.79,0.00033238,2]
[328031954,1716787833118,-151.79,0.00033238,2]
[328031956,1716787833128,-206.6086462,0.00033238,4]
[328031958,1716787833138,-163.38460229,0.00033238,4]
[328031960,1716787833148,-407.24197213,0.00033238,4]
[328031962,1716787833159,-5581.63801379,0.00033238,4]
[328031964,1716787833168,-284.97525977,0.00033238,4]
[328031966,1716787833177,-196.93393272,0.00033238,4]
[328031968,1716787833187,-156.10684798,0.00033238,4]
[328031970,1716787833197,-328.36282116,0.00033238,4]
[328031972,1716787833207,-843.39409174,0.00033238,4]
[328031974,1716787833216,-307.25961932,0.00033238,4]
[328031975,1716787833225,-161.24409802,0.00033238,4]
[328031977,1716787833235,-4740.8727,0.00033238,4]
[328031978,1716787833244,-3080.82325117,0.00033238,4]
[328031979,1716787833254,-180.02133921,0.00033238,4]
[328031980,1716787833264,-155.0,0.00033238,4]
[328031981,1716787833274,-202.55172052,0.00033238,4]
[328031982,1716787833286,-155.37095764,0.00033238,4]
[328031983,1716787833295,-155.27443187,0.00033238,4]
[328031984,1716787833304,-155.0,0.00033238,4]
[328031985,1716787833314,-155.30937043,0.00033238,4]
[328031986,1716787833324,-2449.04624258,0.00033238,4]
[328031987,1716787833333,-209.99387941,0.00033238,4]
[328031988,1716787833343,-235.4368246,0.00033238,4]
[328031989,1716787833352,-258.84995201,0.00033238,4]
[328031990,1716787833361,-793.69045832,0.00033238,4]
[328031991,1716787833371,-4027.82139946,0.00033239,4]
[328031992,1716787833380,-685.02584944,0.0003324,4]
[328031993,1716787833390,-347.22895864,0.00033246,4]
[328031994,1716787833400,-357.05601945,0.00033246,4]
[328031995,1716787833409,-269.94960072,0.00033246,4]
[328031996,1716787833418,-658.99989569,0.00033246,4]
[328031997,1716787833428,-323.02726323,0.00033246,4]
[328031998,1716787833437,-150.0,0.00033247,7]
[328031999,1716787833447,-150.0,0.00033247,7]
[328032000,1716787833456,-150.0,0.00033247,7]
[328032001,1716787833466,-140685.68137304,0.00033248,60]
[328032004,1716787838369,-3114.06417264,0.00033148,2]
[328032006,1716787838379,-1199.83122796,0.00033247,9]
[328032008,1716787838388,-98691.73653135,0.00033248,60]
[328032010,1716787838917,-2006.44304985,0.00033248,60]
[328032044,1716787841257,-370.23392235,0.00032163,2]
[328032045,1716787841267,-370.23392235,0.00032343,2]
[328032046,1716787841277,-5976.64935852,0.00033248,60]
[328032047,1716787842535,-370.23392235,0.00032776,2]
[328032049,1716787842545,-370.23392235,0.00033143,2]
[328032051,1716787842554,-1742.51398902,0.00033248,60]
[328032054,1716787843539,-6458.79509271,0.00033248,60]
[328032056,1716787844329,-1235.01957336,0.00033248,60]
[328032062,1716787844837,-7806.23999991,0.00033248,60]
[328032065,1716787844850,-193442.99659115,0.00033248,60]
[328032067,1716787844864,-40664.30831541,0.00033248,60]
[328032068,1716787844877,-364.91003549,0.00033248,60]
[328032084,1716787846534,-585.11235056,0.0003,4]
[328032085,1716787846545,-32.63764909,0.00033248,60]
[328032086,1716787846648,-3893.14823999,0.00033248,60]
[328032087,1716787846660,-6850.2,0.00033248,60]
[328032088,1716787846672,-445.26484457,0.00033248,60]
[328032089,1716787846762,-5389.40466,0.00033248,60]
[328032115,1716788025665,22873.73945417,0.00013,2]
[328032116,1716788025693,192000.0,0.00013,2]
[328032117,1716788025720,1800.0,0.00013,2]
[328032118,1716788750144,-541.62529953,0.00012967,2]
[328032119,1716788750163,-155.0,0.00012968,2]
[328032120,1716788750182,-117.87278957,0.00012969,2]
[328032121,1716788834471,164.37,0.00030526,120]
[328032122,1716788849138,-241.14485122,0.00012999,2]
[328032138,1716789032646,-18.01213863,0.00012999,2]
[328032139,1716789032655,-155.0,0.00012999,2]
[328032140,1716789032664,-10429.37110275,0.00013,2]
[328032144,1716789032778,-1578.55756815,0.00013,2]
[328032145,1716789032790,-355.34,0.00013,2]
[328032146,1716789032801,-257.69726089,0.00013,2]
[328032147,1716789032812,-16406.43286166,0.00013,2]
[328032148,1716789032823,-3389.71792029,0.00013,2]
[328032149,1716789032834,-795.00263647,0.00013,2]